fUSD/lending_fUSD_20241002
["ID","MTS","AMOUNT","RATE_DAILY","PERIOD"]
[339699071,1727871040330,-1000.0,0.00019548,2]
[339699073,1727871040339,-250.0,0.00019871,2]
[339699075,1727871040349,-150.0,0.0002012,2]
[339699077,1727871040359,-151.5,0.00020195,4]
[339699079,1727871040368,-150.0,0.00020195,2]
[339699081,1727871040378,-150.0,0.00020195,2]
[339699083,1727871040390,-150.0,0.00020195,2]
[339699085,1727871040399,-150.0,0.00020195,2]
[339699087,1727871040409,-274.70673074,0.00020195,2]
[339699089,1727871040418,-150.0,0.00020195,2]
[339699091,1727871040428,-150.0,0.00020195,2]
[339699092,1727871040437,-150.00000001,0.00020195,2]
[339699094,1727871040446,-150.0,0.00020195,2]
[339699096,1727871040455,-150.0,0.00020195,2]
[339699098,1727871040465,-150.34728085,0.00020195,2]
[339699100,1727871040474,-152.46172741,0.00020195,2]
[339699102,1727871040485,-649.92,0.000202,2]
[339699104,1727871040495,-151.5,0.00020217,4]
[339699106,1727871040504,-150.0,0.00020227,4]
[339699108,1727871040516,-215.71,0.00020228,2]
[339699110,1727871040525,-151.5,0.0002024,4]
[339699112,1727871040535,-150.0,0.00020241,4]
[339699114,1727871040545,-2751.0,0.00020256,2]
[339699116,1727871040556,-150.0,0.0002026,4]
[339699118,1727871040566,-250.0,0.00020261,2]
[339699120,1727871040575,-154.05,0.00020261,2]
[339699122,1727871040585,-151.5,0.00020263,4]
[339699124,1727871040595,-190.87,0.00020269,2]
[339699126,1727871040605,-151.5,0.00020285,4]
[339699128,1727871040615,-150.0,0.00020288,4]
[339699130,1727871040625,-150.0,0.00020292,4]
[339699132,1727871040634,-151.5,0.00020308,4]
[339699134,1727871040644,-150.0,0.00020325,4]
[339699136,1727871040654,-151.5,0.00020331,4]
[339699138,1727871040669,-150.0,0.00020335,4]
[339699140,1727871040679,-151.5,0.00020353,4]
[339699142,1727871040690,-150.0,0.00020357,4]
[339699144,1727871040699,-151.5,0.00020376,4]
[339699147,1727871040710,-150.0,0.00020382,4]
[339699149,1727871040720,-150.0,0.00020382,4]
[339699151,1727871040734,-150.0,0.0002039,4]
[339699153,1727871040745,-151.5,0.00020399,4]
[339699155,1727871040755,-151.5,0.00020421,4]
[339699157,1727871040765,-150.0,0.00020422,4]
[339699159,1727871040775,-150.0,0.00020428,4]
[339699161,1727871040785,-151.5,0.00020444,4]
[339699163,1727871040796,-150.0,0.00020455,4]
[339699165,1727871040805,-151.5,0.00020467,4]
[339699167,1727871040815,-150.0,0.00020475,4]
[339699169,1727871040825,-150.0,0.00020487,4]
[339699171,1727871040835,-151.5,0.00020489,4]
[339699173,1727871040845,-151.5,0.00020512,4]
[339699175,1727871040855,-150.0,0.0002052,4]
[339699177,1727871040865,-150.0,0.00020522,4]
[339699179,1727871040875,-151.5,0.00020534,4]
[339699182,1727871040885,-150.0,0.00020552,4]
[339699183,1727871040895,-151.5,0.00020557,4]
[339699186,1727871040905,-150.0,0.00020568,4]
[339699188,1727871040916,-150.0,0.00020568,4]
[339699190,1727871040926,-151.5,0.0002058,4]
[339699192,1727871040936,-150.0,0.00020585,4]
[339699194,1727871040946,-151.5,0.00020602,4]
[339699196,1727871040956,-150.0,0.00020615,4]
[339699198,1727871040966,-150.0,0.00020617,4]
[339699200,1727871040979,-151.5,0.00020625,4]
[339699202,1727871040990,-151.5,0.00020648,4]
[339699204,1727871041000,-150.0,0.0002065,4]
[339699206,1727871041010,-150.0,0.00020662,4]
[339699208,1727871041021,-151.5,0.0002067,4]
[339699210,1727871041031,-150.0,0.00020682,4]
[339699212,1727871041040,-151.5,0.00020693,4]
[339699214,1727871041050,-150.0,0.00020709,4]
[339699216,1727871041059,-150.0,0.00020715,4]
[339699218,1727871041069,-151.5,0.00020716,4]
[339699220,1727871041079,-151.5,0.00020738,4]
[339699222,1727871041089,-1398.24755532,0.00020744,2]
[339699224,1727871041099,-150.0,0.00020747,4]
[339699226,1727871041110,-150.0,0.00020755,4]
[339699228,1727871041120,-150.0,0.00020755,4]
[339699230,1727871041131,-151.5,0.00020761,4]
[339699232,1727871041142,-150.0,0.00020779,2]
[339699234,1727871041152,-150.0,0.0002078,4]
[339699236,1727871041162,-151.5,0.00020784,4]
[339699238,1727871041173,-150.0,0.00020802,4]
[339699240,1727871041183,-169.38,0.00020805,2]
[339699241,1727871041193,-151.5,0.00020806,4]
[339699242,1727871041203,-150.0,0.00020812,4]
[339699243,1727871041213,-151.5,0.00020829,4]
[339699244,1727871041223,-150.0,0.00020845,4]
[339699245,1727871041236,-150.0,0.00020849,4]
[339699246,1727871041245,-151.5,0.00020852,4]
[339699247,1727871041255,-151.5,0.00020874,4]
[339699248,1727871041265,-150.0,0.00020877,4]
[339699249,1727871041275,-150.0,0.00020896,4]
[339699250,1727871041285,-151.5,0.00020897,4]
[339699251,1727871041295,-150.0,0.0002091,4]
[339699252,1727871041305,-151.5,0.0002092,4]
[339699253,1727871041318,-151.5,0.00020942,4]
[339699254,1727871041328,-150.0,0.00020942,4]
[339699255,1727871041338,-150.0,0.00020942,4]
[339699257,1727871041348,-150.0,0.00020942,4]
[339699259,1727871041359,-169.26,0.00020961,2]
[339699261,1727871041369,-151.5,0.00020965,4]
[339699263,1727871041379,-150.0,0.00020975,4]
[339699265,1727871041389,-151.5,0.00020988,4]
[339699267,1727871041400,-150.0,0.00020989,4]
[339699268,1727871041410,-500.0,0.00021,2]
[339699269,1727871041421,-157.700337,0.00021,2]
[339699270,1727871041431,-150.0,0.00021008,4]
[339699271,1727871041441,-151.5,0.0002101,4]
[339699272,1727871041452,-453.36,0.0002102,2]
[339699273,1727871041462,-151.5,0.00021033,4]
[339699274,1727871041472,-150.0,0.00021036,4]
[339699275,1727871041485,-150.0,0.0002104,4]
[339699276,1727871041495,-151.5,0.00021056,4]
[339699277,1727871041505,-150.0,0.00021073,4]
[339699278,1727871041515,-151.5,0.00021078,4]
[339699279,1727871041525,-150.0,0.00021083,4]
[339699280,1727871041534,-151.5,0.00021101,4]
[339699281,1727871041544,-150.0,0.00021105,4]
[339699282,1727871041554,-678.42,0.00021106,2]
[339699283,1727871041563,-151.5,0.00021124,4]
[339699284,1727871041574,-150.0,0.00021129,4]
[339699285,1727871041584,-150.0,0.00021129,4]
[339699286,1727871041594,-150.0,0.00021138,4]
[339699287,1727871041605,-151.5,0.00021146,4]
[339699288,1727871041615,-151.5,0.00021169,4]
[339699289,1727871041625,-150.0,0.0002117,4]
[339699290,1727871041635,-150.0,0.00021176,4]
[339699291,1727871041645,-151.5,0.00021192,4]
[339699292,1727871041655,-150.0,0.00021203,4]
[339699293,1727871041666,-151.5,0.00021214,4]
[339699294,1727871041676,-150.0,0.00021223,4]
[339699295,1727871041686,-150.0,0.00021235,4]
[339699296,1727871041697,-151.5,0.00021237,4]
[339699297,1727871041707,-151.5,0.0002126,4]
[339699298,1727871041717,-150.0,0.00021268,4]
[339699299,1727871041730,-150.0,0.0002127,4]
[339699300,1727871041740,-151.5,0.00021282,4]
[339699301,1727871041750,-150.0,0.000213,4]
[339699302,1727871041761,-151.5,0.00021305,4]
[339699303,1727871041771,-150.0,0.00021316,4]
[339699304,1727871041781,-150.0,0.00021316,4]
[339699305,1727871041791,-150.0,0.00021316,4]
[339699306,1727871041801,-151.5,0.00021328,4]
[339699307,1727871041811,-150.0,0.00021333,4]
[339699308,1727871041822,-151.5,0.0002135,4]
[339699309,1727871041832,-150.0,0.00021363,4]
[339699310,1727871041841,-150.0,0.00021365,4]
[339699311,1727871041851,-151.5,0.00021373,4]
[339699312,1727871041861,-151.5,0.00021396,4]
[339699313,1727871041871,-150.0,0.00021398,4]
[339699314,1727871041880,-150.0,0.0002141,4]
[339699315,1727871041890,-151.5,0.00021418,4]
[339699316,1727871041900,-150.0,0.0002143,4]
[339699317,1727871041910,-150.0,0.00021437,2]
[339699318,1727871041919,-151.5,0.00021441,4]
[339699319,1727871041930,-150.0,0.00021457,4]
[339699320,1727871041940,-150.0,0.00021463,4]
[339699321,1727871041949,-151.5,0.00021464,4]
[339699322,1727871041959,-151.5,0.00021486,4]
[339699323,1727871041969,-150.0,0.00021495,4]
[339699324,1727871041981,-1400.0,0.000215,7]
[339699325,1727871041997,-150.0,0.00021503,4]
[339699326,1727871042007,-150.0,0.00021503,4]
[339699327,1727871042016,-151.5,0.00021509,4]
[339699328,1727871042026,-150.0,0.00021528,4]
[339699329,1727871042035,-151.5,0.00021532,4]
[339699330,1727871042045,-150.0,0.0002155,4]
[339699331,1727871042054,-151.5,0.00021554,4]
[339699332,1727871042064,-150.0,0.0002156,4]
[339699333,1727871042073,-151.5,0.00021577,4]
[339699334,1727871042088,-150.0,0.00021593,4]
[339699335,1727871042098,-150.0,0.00021597,4]
[339699336,1727871042108,-151.5,0.000216,4]
[339699337,1727871042118,-2800.0,0.000216,7]
[339699338,1727871042128,-178.36,0.0002162,2]
[339699339,1727871042138,-151.5,0.00021622,4]
[339699340,1727871042148,-150.0,0.00021625,4]
[339699341,1727871042158,-150.0,0.00021644,4]
[339699342,1727871042168,-151.5,0.00021645,4]
[339699343,1727871042178,-150.0,0.00021658,4]
[339699344,1727871042188,-151.5,0.00021668,4]
[339699345,1727871042197,-151.5,0.0002169,4]
[339699346,1727871042207,-150.0,0.0002169,4]
[339699347,1727871042217,-150.0,0.0002169,4]
[339699348,1727871042226,-150.0,0.0002169,4]
[339699349,1727871042243,-4200.0,0.000217,7]
[339699350,1727871042252,-600.0,0.000217,7]
[339699351,1727871042261,-151.5,0.00021713,4]
[339699352,1727871042271,-150.0,0.00021723,4]
[339699353,1727871042280,-151.5,0.00021736,4]
[339699354,1727871042289,-150.0,0.00021737,4]
[339699355,1727871042299,-150.0,0.00021744,2]
[339699356,1727871042308,-150.0,0.00021755,4]
[339699357,1727871042322,-151.5,0.00021758,4]
[339699358,1727871042331,-151.5,0.00021781,4]
[339699359,1727871042341,-150.0,0.00021784,4]
[339699360,1727871042351,-150.0,0.00021788,4]
[339699361,1727871042361,-5600.0,0.000218,7]
[339699362,1727871042371,-151.5,0.00021804,4]
[339699363,1727871042381,-522.79243652,0.00021806,2]
[339699364,1727871042392,-300.0,0.00021807,2]
[339699365,1727871042402,-493.1894,0.00021817,2]
[339699366,1727871042412,-217.0,0.00021817,2]
[339699367,1727871042421,-848.1,0.00021817,2]
[339699368,1727871042431,-3303.4273,0.00021817,2]
[339699369,1727871042441,-7500.0,0.00021817,2]
[339699370,1727871042450,-161.32186998,0.00021817,2]
[339699371,1727871042460,-236.99435846,0.00021817,2]
[339699372,1727871042469,-150.0,0.0002182,4]
[339699373,1727871042481,-151.5,0.00021826,4]
[339699374,1727871042491,-150.0,0.00021831,4]
[339699375,1727871042500,-151.5,0.00021849,4]
[339699376,1727871042510,-167.47,0.00021849,2]
[339699377,1727871042520,-150.0,0.00021853,4]
[339699378,1727871042530,-151.5,0.00021872,4]
[339699379,1727871042540,-150.0,0.00021877,4]
[339699380,1727871042549,-150.0,0.00021877,4]
[339699381,1727871042559,-150.0,0.00021886,4]
[339699382,1727871042568,-151.5,0.00021894,4]
[339699383,1727871042578,-109047.554091,0.00021897,3]
[339699384,1727871042588,-190.84835501,0.00021897,2]
[339699385,1727871042598,-7100.0,0.000219,7]
[339699386,1727871042608,-255118.57145317,0.00021907,3]
[339699387,1727871042630,-72024.09081983,0.00021907,3]
[339699388,1727871042639,-22860.63629447,0.00021907,3]
[339699443,1727871043589,-2865.81931308,0.00021907,3]
[339699446,1727871046301,-1122.88953601,0.00021817,2]
[339699447,1727871046514,-649.83,0.00021817,2]
[339699448,1727871046569,-1276.01781302,0.00021817,2]
[339700265,1727872232823,-182.58,0.00010959,2]
[339700266,1727872232833,-150.0,0.00010999,2]
[339700267,1727872232845,-15042.33350987,0.00011,2]
[339700268,1727872232856,-40921.22046376,0.00011,2]
[339700269,1727872232893,-3190.6686,0.00011,2]
[339700270,1727872232916,-4260.0914,0.00011,2]
[339700280,1727872238265,-500.03801284,0.00011,2]
[339700281,1727872238277,-51500.0,0.00011,2]
[339700282,1727872238324,-2410.73022056,0.00011,2]
[339700283,1727872238335,-1004.68585305,0.00011,2]
[339700284,1727872238382,-328.53229629,0.00011,2]
[339700285,1727872238393,-530.4,0.00011,2]
[339700300,1727872240359,-729.86947114,0.00011,2]
[339700301,1727872240371,-395.48039178,0.00011,2]
[339700302,1727872240399,-1247.19195163,0.00011,2]
[339700303,1727872240410,-332.54659203,0.00011,2]
[339700304,1727872240423,-3884.44144592,0.00011,2]
[339700305,1727872240435,-547.52749393,0.00011,2]
[339700306,1727872240450,-1725.70774394,0.00011,2]
[339700307,1727872240461,-6474.67195036,0.00011,2]
[339700308,1727872240539,-2173.91092252,0.00011,2]
[339700309,1727872240550,-219779.35744851,0.00011,2]
[339700310,1727872240561,-730.07124766,0.00011,2]
[339700574,1727872243489,-186074.81262057,0.00011,2]
[339700576,1727872243500,-5837.29318982,0.00011,2]
[339700596,1727872243689,-94104.5514412,0.00011,2]
[339700598,1727872243703,-76836.03253093,0.00011,2]
[339700600,1727872243713,-250.0,0.00011,2]
[339700602,1727872243723,-7849.36932723,0.000119,2]
[339700604,1727872243733,-150.999996,0.00012,2]
[339700606,1727872243743,-500.0,0.0001214,2]
[339700608,1727872243753,-4823.76334367,0.000123,2]
[339700610,1727872243762,-300.0,0.00013,2]
[339700612,1727872243772,-7849.36932716,0.00013428,2]
[339700614,1727872243781,-500.0,0.0001351,2]
[339700616,1727872243791,-500.0,0.00013799,2]
[339700618,1727872243800,-500.0,0.00013799,2]
[339700620,1727872243809,-647.02144694,0.00013799,2]
[339700622,1727872243819,-211210.792899,0.000138,2]
[339700625,1727872243828,-89446.37017741,0.000139,2]
[339700629,1727872243848,-94079.57154859,0.000139,2]
[339700632,1727872243857,-189.59548676,0.000142,2]
[339700634,1727872243867,-3509.03767282,0.000143,15]
[339700636,1727872243876,-26217.9916752,0.0001488,2]
[339700638,1727872243885,-13617.91902272,0.0001489,2]
[339700640,1727872243897,-315.0,0.0001489,2]
[339700793,1727872246336,-2175.0,0.0001489,2]
[339700795,1727872246397,-139.06504638,0.0001489,2]
[339700796,1727872246406,-300.0,0.000149,5]
[339700797,1727872246416,-2378.88971762,0.00014956,2]
[339700798,1727872246428,-4476.71,0.00014956,2]
[339700799,1727872246726,-993.76960954,0.00014956,2]
[339700800,1727872246735,-350.0,0.00015,2]
[339700801,1727872246744,-250.0,0.00015446,2]
[339700802,1727872246753,-7849.36932716,0.00016484,2]
[339700803,1727872246762,-189.59548676,0.00016652,2]
[339700804,1727872246771,-400.0,0.00017,2]
[339700805,1727872246780,-6575.45458184,0.00018012,2]
[339700808,1727872505862,1000.0,0.00021,60]
[339700809,1727872508233,1000.0,0.00021,60]
[339700810,1727872511421,1000.0,0.00021,60]
[339700811,1727872516432,1000.0,0.00021,60]
[339700812,1727872517307,1000.0,0.00021,60]
[339700813,1727872518122,1000.0,0.00021,60]
[339700814,1727872518903,1000.0,0.00021,60]
[339700815,1727872519665,1000.0,0.00021,60]
[339700816,1727872520779,1000.0,0.00021,60]
[339700817,1727872522128,1000.0,0.00021,60]
[339700819,1727873104468,627.68634804,0.00022,120]
[339700843,1727873431525,-163.49,0.00010959,2]
[339700844,1727873431535,-403.05007379,0.00015744,2]
[339700845,1727873431547,-594.99826677,0.00015744,2]
[339700846,1727873431581,-1752.95165944,0.00015744,2]
[339700847,1727873431591,-404.76,0.00015745,2]
[339700848,1727873431600,-5224.45,0.00015758,2]
[339700849,1727873431609,-154.78050333,0.00015783,2]
[339700850,1727873431620,-334.50747262,0.00015783,2]
[339700851,1727873431699,-253.71358503,0.00015783,2]
[339700852,1727873431711,-3725.15843902,0.00015783,2]
[339700853,1727873431720,-150.0,0.00015809,2]
[339700854,1727873431730,-124.84156098,0.00015822,2]
[339700855,1727873431794,-89.43843902,0.00015822,2]
[339700856,1727873431803,-159.12,0.00015836,2]
[339700857,1727873431812,-87.3709609,0.0001586,2]
[339700859,1727873431824,-162.6290391,0.0001586,2]
[339700861,1727873431833,-186.26106294,0.0001592,2]
[339700864,1727873431855,-1797.40548677,0.0001592,2]
[339700866,1727873431866,-4384.97345029,0.0001592,2]
[339700868,1727873431875,-311.2,0.00016086,2]
[339700870,1727873431884,-448.66,0.00016102,2]
[339700872,1727873431893,-574.67126759,0.00016109,2]
[339700874,1727873431904,-225.32873241,0.00016109,2]
[339700876,1727873431913,-120.17126759,0.000162,2]
[339700878,1727873431924,-29.82873241,0.000162,2]
[339700880,1727873431933,-150.0,0.000162,2]
[339700882,1727873431942,-150.0,0.000162,2]
[339700883,1727873431952,-150.0,0.000162,2]
[339700885,1727873431961,-150.0,0.000162,2]
[339700887,1727873431970,-150.12629419,0.000162,2]
[339700889,1727873431979,-54.85694126,0.000162,2]
[339700901,1727873437740,-95.14305874,0.000162,2]
[339700902,1727873437749,-150.13144419,0.000162,2]
[339700903,1727873437758,-52.97549707,0.000162,2]
[339700904,1727873437774,-97.11754359,0.000162,2]
[339700905,1727873437784,-660.4,0.00016213,2]
[339700906,1727873437793,-150.0,0.00016231,2]
[339700907,1727873437803,-150.0,0.00016245,2]
[339700908,1727873437812,-16.77303099,0.00016245,2]
[339700909,1727873437824,-308.66866659,0.00016245,2]
[339700910,1727873437848,-174.54830242,0.00016245,2]
[339700911,1727873437858,-150.0,0.00016256,2]
[339700912,1727873437867,-150.0,0.00016262,2]
[339700913,1727873437878,-150.0,0.0001629,2]
[339700914,1727873437887,-150.0,0.00016293,2]
[339700915,1727873437896,-150.0,0.00016312,2]
[339700916,1727873437906,-150.0,0.00016324,2]
[339700917,1727873437915,-150.0,0.00016335,2]
[339700918,1727873437924,-150.0,0.00016338,2]
[339700919,1727873437935,-150.0,0.00016355,2]
[339700920,1727873437946,-150.0,0.00016369,2]
[339700921,1727873437956,-7.49447188,0.0001638,2]
[339700922,1727873437985,-142.50552812,0.0001638,2]
[339700923,1727873437994,-150.0,0.00016386,2]
[339700924,1727873438003,-150.0,0.00016417,2]
[339700925,1727873438012,-126.61142188,0.00016425,2]
[339700926,1727873438024,-23.38857812,0.00016425,2]
[339700927,1727873438033,-150.0,0.00016425,2]
[339700929,1727873438043,-150.33,0.00016438,2]
[339700930,1727873438052,-150.0,0.00016448,2]
[339700931,1727873438060,-150.0,0.0001647,2]
[339700932,1727873438069,-150.0,0.00016477,2]
[339700933,1727873438078,-150.0,0.00016479,2]
[339700934,1727873438087,-150.0,0.00016481,2]
[339700935,1727873438096,-150.0,0.0001651,2]
[339700936,1727873438105,-150.0,0.00016515,2]
[339700937,1727873438114,-150.0,0.00016537,2]
[339700938,1727873438122,-150.0,0.00016541,2]
[339700939,1727873438131,-150.0,0.0001656,2]
[339700940,1727873438140,-59.18594066,0.00016572,2]
[339700941,1727873438151,-90.81405934,0.00016572,2]
[339700942,1727873438160,-150.0,0.00016594,2]
[339700943,1727873438169,-150.0,0.00016603,2]
[339700944,1727873438178,-150.0,0.00016605,2]
[339700945,1727873438187,-150.0,0.00016615,2]
[339700946,1727873438196,-150.0,0.00016634,2]
[339700947,1727873438206,-150.0,0.0001665,2]
[339700948,1727873438215,-8.68523976,0.0001665,2]
[339700952,1727873439504,-141.31476024,0.0001665,2]
[339700953,1727873439516,-150.0,0.00016666,2]
[339700954,1727873439526,-150.0,0.00016695,2]
[339700955,1727873439536,-150.0,0.00016697,2]
[339700956,1727873439546,-150.0,0.00016706,2]
[339700957,1727873439555,-150.0,0.00016728,2]
[339700958,1727873439565,-150.0,0.0001674,2]
[339700959,1727873439574,-150.0,0.00016754,2]
[339700960,1727873439584,-150.0,0.00016759,2]
[339700961,1727873439593,-150.0,0.00016762,2]
[339700962,1727873439603,-139.71625448,0.00016785,2]
[339700963,1727873439617,-10.28374552,0.00016785,2]
[339700964,1727873439627,-150.0,0.0001679,2]
[339700965,1727873439637,-150.0,0.00016819,2]
[339700966,1727873439646,-150.0,0.00016821,2]
[339700967,1727873439656,-150.0,0.0001683,2]
[339700968,1727873439666,-150.0,0.00016852,2]
[339700969,1727873439676,-150.0,0.00016875,2]
[339700970,1727873439685,-150.0,0.00016875,2]
[339700971,1727873439694,-150.0,0.00016883,2]
[339700972,1727873439704,-150.0,0.00016892,2]
[339700973,1727873439713,-177.70788118,0.000169,5]
[339700974,1727873439741,-794.58206914,0.000169,5]
[339700975,1727873439752,-919.79427,0.000169,5]
[339700976,1727873439771,-9618.91577968,0.000169,5]
[339700977,1727873439782,-150.0,0.00016914,2]
[339700979,1727873439791,-150.0,0.0001692,2]
[339700981,1727873439801,-150.0,0.00016931,2]
[339700982,1727873439810,-150.0,0.00016945,2]
[339700983,1727873439819,-150.0,0.00016965,2]
[339700984,1727873439829,-150.0,0.00016976,2]
[339700985,1727873439838,-150.0,0.00016987,2]
[339700986,1727873439847,-300.0,0.00017,6]
[339700987,1727873439857,-150.0,0.00017007,2]
[339700988,1727873439866,-150.0,0.0001701,2]
[339700989,1727873439875,-150.0,0.00017031,2]
[339700990,1727873439884,-150.0,0.00017038,2]
[339700991,1727873439893,-150.0,0.00017044,2]
[339700992,1727873439902,-150.0,0.00017055,2]
[339700993,1727873439911,-150.0,0.00017069,2]
[339700994,1727873439920,-150.0,0.000171,2]
[339700995,1727873439930,-150.0,0.000171,2]
[339700996,1727873439939,-150.0,0.000171,2]
[339700997,1727873439948,-150.0,0.000171,2]
[339700998,1727873439958,-150.0,0.000171,2]
[339700999,1727873439967,-700.0,0.000171,6]
[339701000,1727873439976,-150.33,0.00017123,2]
[339701001,1727873439986,-150.0,0.00017131,2]
[339701002,1727873439994,-150.0,0.00017145,2]
[339701003,1727873440004,-150.0,0.00017156,2]
[339701004,1727873440013,-150.0,0.00017162,2]
[339701005,1727873440022,-150.0,0.00017169,2]
[339701006,1727873440033,-150.0,0.0001719,2]
[339701007,1727873440042,-150.0,0.00017193,2]
[339701008,1727873440051,-1000.0,0.000172,6]
[339701009,1727873440061,-150.0,0.00017212,2]
[339701010,1727873440070,-150.0,0.00017224,2]
[339701011,1727873440078,-150.0,0.00017235,2]
[339701012,1727873440087,-150.0,0.00017255,2]
[339701013,1727873440097,-150.0,0.00017269,2]
[339701014,1727873440107,-150.0,0.0001728,2]
[339701015,1727873440115,-150.0,0.00017286,2]
[339701016,1727873440124,-1400.0,0.000173,6]
[339701017,1727873440134,-150.0,0.00017308,2]
[339701018,1727873440143,-150.0,0.00017317,2]
[339701019,1727873440151,-150.0,0.00017325,2]
[339701020,1727873440161,-150.0,0.00017325,2]
[339701021,1727873440170,-150.0,0.00017348,2]
[339701022,1727873440179,-150.0,0.0001737,2]
[339701023,1727873440188,-150.0,0.00017379,2]
[339701024,1727873440197,-150.0,0.00017381,2]
[339701025,1727873440207,-2533.94,0.00017385,2]
[339701026,1727873440216,-1700.0,0.000174,6]
[339701027,1727873440225,-178.36,0.0001741,2]
[339701028,1727873440235,-150.0,0.0001741,2]
[339701029,1727873440244,-150.0,0.00017415,2]
[339701030,1727873440253,-150.0,0.00017437,2]
[339701031,1727873440263,-150.0,0.00017441,2]
[339701032,1727873440272,-180.0,0.00017446,2]
[339701033,1727873440283,-250.0,0.00017446,2]
[339701034,1727873440293,-150.0,0.00017446,2]
[339701035,1727873440302,-150.0,0.0001746,2]
[339701036,1727873440311,-150.0,0.00017472,2]
[339701037,1727873440321,-8500.0,0.00017491,2]
[339701038,1727873440330,-150.0,0.00017494,2]
[339701039,1727873440339,-8500.0,0.000175,2]
[339701040,1727873440348,-17241.31962772,0.000175,2]
[339701041,1727873440357,-300.0,0.000175,6]
[339701042,1727873440367,-150.0,0.00017503,2]
[339701043,1727873440376,-150.0,0.00017505,2]
[339701044,1727873440385,-150.0,0.00017534,2]
[339701045,1727873440395,-150.0,0.0001755,2]
[339701046,1727873440404,-150.0,0.0001755,2]
[339701047,1727873440414,-150.0,0.00017566,2]
[339701048,1727873440423,-150.0,0.00017585,2]
[339701049,1727873440434,-150.0,0.00017595,2]
[339701050,1727873440445,-150.0,0.00017597,2]
[339701051,1727873440454,-300.0,0.000176,6]
[339701052,1727873440464,-150.0,0.00017606,2]
[339701053,1727873440473,-422.34458308,0.00017618,2]
[339701054,1727873440486,-1608.61,0.00017624,2]
[339701055,1727873440495,-150.0,0.00017628,2]
[339701056,1727873440505,-150.0,0.0001764,2]
[339701057,1727873440517,-150.0,0.00017659,2]
[339701058,1727873440528,-150.0,0.00017662,2]
[339701059,1727873440537,-150.0,0.00017685,2]
[339701060,1727873440546,-150.0,0.0001769,2]
[339701061,1727873440556,-300.0,0.000177,6]
[339701062,1727873440565,-150.0,0.00017719,2]
[339701063,1727873440575,-150.0,0.00017721,2]
[339701064,1727873440584,-150.0,0.00017723,2]
[339701065,1727873440594,-150.0,0.0001773,2]
[339701066,1727873440604,-150.0,0.00017752,2]
[339701067,1727873440614,-150.0,0.00017775,2]
[339701068,1727873440624,-150.0,0.00017775,2]
[339701069,1727873440634,-150.0,0.00017783,2]
[339701070,1727873440643,-300.0,0.000178,6]
[339701071,1727873440652,-150.33,0.00017808,2]
[339701072,1727873440661,-150.0,0.00017814,2]
[339701073,1727873440670,-150.0,0.0001782,2]
[339701074,1727873440680,-150.0,0.00017831,2]
[339701075,1727873440689,-150.0,0.00017845,2]